Cogmind - Beta 15 @@@ ROGUE MODE // 2025.08.16 @ 20:59:51 Player: StaticNoob Result: Destroyed by Y-45 Defender with Beam Rifle Performance ------------- Evolutions (2) 1000 Regions Visited (9) 1800 Robots Destroyed (119) 595 Value Destroyed (3267) 3267 Prototype IDs (32) 640 Alien Tech Used (0) 0 Bonus (1304) 1304 TOTAL SCORE: 8606 Bonus ------- High Alert Combat Kills 164 Follower Combat Kills 140 Entered Garrisons 200 Used RIF Installer 500 Aligned with FarCom 300 Cogmind --------- Core Integrity 0/550 Matter 290/300 Energy 283/290 System Corruption 0% Temperature Cool (12) Movement Treading (235) Ox1 Location -8/Materials Parts ------- > --- POWER (1) -------- Improved Deuterium Engine > --- PROPULSION (3) --- Light Treads Light Treads Advanced Treads > --- UTILITY (4) ------ Improved Heat Sink Improved Heat Sink High-capacity Storage Unit Machine Analyzer > --- WEAPON (3) ------- Gatling Laser Firepult > --- INVENTORY (20) --- Heavy Ion Engine Heavy Ion Engine Nuclear Core Improved Heat Sink Improved Heat Sink Compact Matter Pod (150) Relay Coupler [Swarmer] (28) Relay Coupler [Grunt] (27) Relay Coupler [Sentry] (18) Arc Projector Datajack Peak State ------------ > --- POWER ------------ Improved Deuterium Engine > --- PROPULSION ------- Light Treads Light Treads Advanced Treads > --- UTILITY ---------- Improved Heat Sink Improved Heat Sink High-capacity Storage Unit Machine Analyzer > --- WEAPON ----------- Gatling Laser Firepult > --- INVENTORY -------- Heavy Ion Engine Heavy Ion Engine Nuclear Core Improved Heat Sink Improved Heat Sink Compact Matter Pod Relay Coupler [Swarmer] Relay Coupler [Grunt] Relay Coupler [Sentry] Arc Projector Datajack [Rating: 46] Favorites ----------- Power Nuclear Core Engine Heavy Ion Engine Power Core Nuclear Core Propulsion Light Treads Treads Light Treads Wheel Compact Wheel Flight Unit Flight Unit Utility High-capacity Storage Unit Device Seismic Detector Storage High-capacity Storage Unit Processor Machine Analyzer Weapon Autogun Energy Gun Gatling Laser Energy Cannon Firepult Ballistic Gun Autogun Launcher Grenade Launcher Build | -11 -10 -10 -9 -9 -9 -8 -8 -8 -8 ------- Run | Yrd Mat Min Mat Min Exi Min Mat Gar Mat Slots Evolved 4 | . . . 2 . . . 2 . . Power . | . . . . . . . . . . Propulsion 1 | . . . 1 . . . . . . Utility 2 | . . . . . . . 2 . . Weapon 1 | . . . 1 . . . . . . Parts Attached 64 | 5 5 8 22 . . . 9 14 1 Power 7 | 1 . 3 1 . . . 1 1 . Engine 5 | 1 . 2 . . . . 1 1 . Core 2 | . . 1 1 . . . . . . Reactor . | . . . . . . . . . . Propulsion 19 | 2 . 3 10 . . . 1 2 1 Treads 15 | 2 . . 9 . . . 1 2 1 Leg . | . . . . . . . . . . Wheel 1 | . . 1 . . . . . . . Hover . | . . . . . . . . . . Flight 3 | . . 2 1 . . . . . . Utility 16 | 1 1 . 7 . . . 5 2 . Device 7 | . 1 . 3 . . . 2 1 . Storage 4 | 1 . . 3 . . . . . . Processor 5 | . . . 1 . . . 3 1 . Hackware . | . . . . . . . . . . Protection . | . . . . . . . . . . Artifact . | . . . . . . . . . . Weapon 22 | 1 4 2 4 . . . 2 9 . Energy Gun 8 | 1 1 . . . . . . 6 . Energy Cannon 1 | . . . . . . . . 1 . Ballistic Gun 11 | . 1 2 4 . . . 2 2 . Ballistic Cannon . | . . . . . . . . . . Launcher 2 | . 2 . . . . . . . . Special Weapon . | . . . . . . . . . . Impact Weapon . | . . . . . . . . . . Slashing Weapon . | . . . . . . . . . . Piercing Weapon . | . . . . . . . . . . Special Melee Weapon . | . . . . . . . . . . Unidentified Prototypes . | . . . . . . . . . . Parts Lost 29 | . 6 5 4 . . . 2 12 . Power 3 | . 1 1 . . . . 1 . . Propulsion 9 | . 2 1 1 . . . . 5 . Utility 5 | . 1 . 2 . . . . 2 . Weapon 12 | . 2 3 1 . . . 1 5 . Highest Loss Streak 8 | . 3 5 1 . . . 1 8 . To Critical Strikes . | . . . . . . . . . . Average Backups 11 | . 2 3 8 14 15 16 16 14 11 Power 2 | . 1 1 2 3 3 3 2 2 3 Propulsion . | . . . 1 1 1 1 1 . . Utility 3 | . . . 1 4 5 5 2 6 6 Weapon 4 | . 1 1 1 5 5 6 9 4 1 Tool/Special . | . . . . . . . . . . Unused Backups 23 | . . . 9 . . . 4 1 9 Power 4 | . . . 2 . . . . . 2 Propulsion 1 | . . . 1 . . . . . . Utility 9 | . . . 1 . . . 1 1 6 Weapon 8 | . . . 5 . . . 3 . . Tool/Special 1 | . . . . . . . . . 1 Average Slot Usage (%) 93 | . 69 51 99 100 100 100 99 87 87 Engine 3 | . 4 7 . . . . 3 9 9 Core 6 | . . 2 11 11 11 11 4 . . Treads 25 | . 18 . 28 33 33 33 27 21 24 Flight 1 | . . 9 2 . . . . . . Device 10 | . 9 . 10 11 11 11 14 9 18 Storage 10 | . 14 14 11 11 11 11 9 9 9 Processor 5 | . . . . . . . 12 14 9 Energy Gun 3 | . 10 4 3 . . . . 8 9 Ballistic Gun 23 | . 3 7 29 33 33 33 26 12 . Peak Build Rating 46 | 5 6 8 18 18 20 20 34 43 46 Average Rating 21 | 4 4 4 14 18 18 20 29 35 45 On Entrance 16 | . 5 2 8 18 18 20 20 34 43 Naked Turns . | . . . . . . . . . . Heaviest Build 78 | 12 13 13 57 57 57 57 59 78 78 Greatest Support 63 | 40 40 16 60 60 60 60 63 63 62 Greatest Overweight (x) 19 | . 2 3 1 . . . . 19 1 Average Overweight (x) . | . . . . . . . . . 1 Largest Inventory Capacity 20 | 8 8 8 20 20 20 20 20 20 20 Average Capacity 15 | 7 8 8 10 20 20 20 20 20 20 Most Carried 20 | 1 3 5 14 15 17 19 19 20 11 Average Carried 12 | . 2 3 8 14 15 17 17 15 11 Final Capacity 20 | 8 8 8 20 20 20 20 20 20 20 Final Carried 19 | 1 3 3 14 15 17 19 18 11 11 Class Distribution -------------------- 31% | Scavenger-Skirmisher 28% | Skirmisher 16% | Gunner 9% | Scavenger-Tank 9% | Mutant Dominant Class ---------------- Mutant | -10/Materials Mutant | -10/Mines Scavenger-Skirmisher | -9/Materials Gunner | -9/Mines Gunner | -9/Exiles Skirmisher | -8/Mines Skirmisher | -8/Materials Scavenger-Skirmisher | -8/Garrison Scavenger-Skirmisher | -8/Materials Resources | -11 -10 -10 -9 -9 -9 -8 -8 -8 -8 ----------- Run | Yrd Mat Min Mat Min Exi Min Mat Gar Mat Matter Collected 2904 | 107 29 222 1206 293 . 165 435 447 . Remotely . | . . . . . . . . . . Salvage Created 4076 | . 253 222 1628 142 . 216 604 1011 . Parts 257 | . 13 18 121 13 . 8 27 57 . Haulers Intercepted 8 | . 2 . 5 . . . 1 . . Recyclers Shooed . | . . . . . . . . . . Parts Field Recycled . | . . . . . . . . . . Retrieved Matter . | . . . . . . . . . . Parts Self-Destructed . | . . . . . . . . . . Prevented . | . . . . . . . . . . Kills | -11 -10 -10 -9 -9 -9 -8 -8 -8 -8 ------- Run | Yrd Mat Min Mat Min Exi Min Mat Gar Mat Combat Hostiles Destroyed 92 | . 9 8 34 . . 7 8 26 . Guns 69 | . 2 3 34 . . 7 8 15 . Cannons 5 | . . . . . . . . 5 . AOE 16 | . 7 5 . . . . . 4 . Classes Destroyed 13 | . 4 1 4 1 . . 1 2 . Worker 7 | . 1 . 3 3 . . . . . Builder 3 | . . . 2 . . . 1 . . Tunneler 1 | . . . . 1 . . . . . Hauler 8 | . 2 . 5 . . . 1 . . Recycler 4 | . . 1 1 1 . . 1 . . Mechanic 1 | . . . . . . . 1 . . Watcher 3 | . . . 3 . . . . . . Swarmer 34 | . 3 6 13 . . 4 . 8 . Grunt 38 | . 6 2 12 . . 3 5 10 . Brawler 1 | . . . . . . . . 1 . Duelist 2 | . . . 1 . . . . 1 . Sentry 14 | . . . 8 . . . 3 3 . Specialist 3 | . . . . . . . . 3 . Best Kill Streak 8 | . 6 4 8 3 . 4 6 5 . Combat Bots Only 8 | . 5 4 8 . . 4 4 5 . Max Kills in Single Turn 4 | . 4 3 2 1 . 1 1 4 . Gunslinging 1 | . . . 1 . . . . 1 . Exploded 3 | . 3 3 . . . . . 3 . Melee . | . . . . . . . . . . Uniques/NPCs Destroyed . | . . . . . . . . . . Combat | -11 -10 -10 -9 -9 -9 -8 -8 -8 -8 -------- Run | Yrd Mat Min Mat Min Exi Min Mat Gar Mat Hostile Shots Fired 401 | . 53 25 130 . . 16 55 121 1 Missed 97 | . 11 4 35 . . 6 15 26 . Hits 304 | . 42 21 95 . . 10 40 95 1 Melee 2 | . . . . . . . . 2 . Projectile 302 | . 42 21 95 . . 10 40 93 1 Critical Strikes 13 | . . . 3 . . . 2 8 . Damage Taken 4565 | . 722 346 969 . . 119 614 1780 15 Core 891 | . 115 88 129 . . 7 14 523 15 Absorbed by Shields 179 | . . . 179 . . . . . . Core Remaining (%) 61 | 100 . 18 . . . 66 . . . Volleys Fired 236 | . 20 14 102 5 . 15 34 46 . Largest 3 | . 2 2 3 3 . 3 3 3 . Hottest 250 | . 60 60 83 69 . 69 71 250 . Shots Fired 612 | . 27 18 305 15 . 45 102 100 . Gun 592 | . 15 16 305 15 . 45 102 94 . Cannon 6 | . . . . . . . . 6 . Launcher 14 | . 12 2 . . . . . . . Special . | . . . . . . . . . . Kinetic 523 | . 3 13 274 15 . 45 102 71 . Thermal 65 | . 4 3 31 . . . . 27 . Explosive 14 | . 12 2 . . . . . . . Electromagnetic 10 | . 8 . . . . . . 2 . Robot Hit Streak 26 | . 10 5 19 3 . 7 26 16 . Robot Miss Streak 5 | . 1 4 5 1 . 2 2 4 . Penetration Max . | . . . . . . . . . . Secondary Targets 14 | . . . 6 . . 2 2 4 . Max Gunslinging Chain 1 | . . . 1 . . 1 1 1 . Shots Hit Robots 397 | . 20 10 184 7 . 32 79 65 . Core Hits 190 | . 19 15 73 5 . 11 23 44 . Critical Kills 1 | . . . 1 . . . . . . Critical Parts Destroyed 2 | . . . 2 . . . . . . Critical Strikes 3 | . . . 3 . . . . . . Destroy 3 | . . . 3 . . . . . . Melee Attacks . | . . . . . . . . . . Impact . | . . . . . . . . . . Slashing . | . . . . . . . . . . Piercing . | . . . . . . . . . . Sneak Attacks . | . . . . . . . . . . Combat Hostiles . | . . . . . . . . . . Follow-up Attacks . | . . . . . . . . . . Damage Inflicted 7602 | . 1297 343 2500 113 . 470 1256 1623 . Guns 5679 | . 122 98 2500 113 . 470 1256 1120 . Cannons 199 | . . . . . . . . 199 . Explosions 1717 | . 1174 239 . . . . . 304 . Melee . | . . . . . . . . . . Ramming 7 | . 1 6 . . . . . . . Kinetic 5054 | . 26 68 2295 113 . 470 1256 826 . Thermal 1221 | . 201 30 205 . . . . 785 . Explosive 1256 | . 1017 239 . . . . . . . Electromagnetic 64 | . 52 . . . . . . 12 . Impact . | . . . . . . . . . . Slashing . | . . . . . . . . . . Piercing . | . . . . . . . . . . Highest Corruption 4 | . . 4 . . . . . . . Average Corruption 4 | . . 4 . . . . . . . Corruption Purged . | . . . . . . . . . . Corruption Blocked . | . . . . . . . . . . Effects 4 | . . 4 . . . . . . . Message Errors 1 | . . 1 . . . . . . . Matter Fused 1 | . . 1 . . . . . . . Heat Flow Errors 1 | . . 1 . . . . . . . Data Loss (major) 1 | . . 1 . . . . . . . Overload Shots . | . . . . . . . . . . Overflow Damage 60 | . 49 1 . . . . . 10 . Projectiles . | . . . . . . . . . . Explosions 60 | . 49 1 . . . . . 10 . Melee . | . . . . . . . . . . Knockbacks . | . . . . . . . . . . Impact . | . . . . . . . . . . Kinetic . | . . . . . . . . . . Secondary . | . . . . . . . . . . Self-Inflicted Damage 498 | . 238 50 53 . . . . 157 . Shots 22 | . 7 2 1 . . . . 12 . Rammed 7 | . 3 4 . . . . . . . Targets Rammed 7 | . 3 4 . . . . . . . Kicked . | . . . . . . . . . . Crushed . | . . . . . . . . . . Highest Temperature 781 | . 37 138 213 26 . 84 10 781 . Average Temperature 81 | . 15 35 45 14 . 31 4 226 . Received Heat Transfer 1574 | . 204 129 314 . . 36 324 558 9 Effects 20 | . . . . . . . . 20 . Shutdowns 3 | . . . . . . . . 3 . Energy Bleed 1 | . . . . . . . . 1 . Interference 4 | . . . . . . . . 4 . Matter Decay 2 | . . . . . . . . 2 . Short Circuit 2 | . . . . . . . . 2 . Damage (major) 6 | . . . . . . . . 6 . Damage (core) 2 | . . . . . . . . 2 . Siege Activations . | . . . . . . . . . . Martial Activations . | . . . . . . . . . . Shielding Activations . | . . . . . . . . . . Robots Disrupted . | . . . . . . . . . . Combat Hostiles . | . . . . . . . . . . Robots Corrupted . | . . . . . . . . . . Combat Hostiles . | . . . . . . . . . . Parts Fried . | . . . . . . . . . . Impact Corruptions . | . . . . . . . . . . Robots Melted 2 | . . . . . . . . 2 . Combat Hostiles 2 | . . . . . . . . 2 . Parts Melted 18 | . . . 1 . . . . 17 . Heat Transferred 3825 | . 250 75 450 . . . . 3050 . Parts Sabotaged . | . . . . . . . . . . Parts Stolen . | . . . . . . . . . . Parts Stripped . | . . . . . . . . . . Power Chain Reactions . | . . . . . . . . . . Alert | -11 -10 -10 -9 -9 -9 -8 -8 -8 -8 ------- Run | Yrd Mat Min Mat Min Exi Min Mat Gar Mat Maximum Alert Level 3 | . 1 . 2 . . . . 3 2 Low Security (%) 63 | 100 84 100 57 100 . 100 100 15 . Level 1 12 | . 15 . 22 . . . . 14 73 Level 2 24 | . . . 20 . . . . 69 26 Level 3 . | . . . . . . . . 1 . Level 4 . | . . . . . . . . . . Level 5 . | . . . . . . . . . . High Security . | . . . . . . . . . . Max Security . | . . . . . . . . . . Peak Influence 793 | . 274 177 442 168 . 124 121 793 401 Initial 386 | . . 99 59 168 . . 13 73 386 Average 210 | . 107 148 208 127 . 37 22 456 390 Influence Increases 3069 | . 394 214 1072 25 . 190 259 900 15 Destroy 0b10 Robot/C 1920 | . 180 160 680 . . 140 160 600 . Destroy 0b10 Robot/NC 135 | . 15 5 70 25 . . 20 . . Destroy Leader 322 | . 34 30 166 . . 20 52 20 . Allied During Kill 39 | . . . . . . . . 39 . Successful Hack 70 | . . . 40 . . . 9 21 . Disable Machine 120 | . 75 . 30 . . 15 . . . Anti-Garrison Action 150 | . . . . . . . . 150 . Destroy Structure 178 | . 90 19 41 . . . 3 25 . Partial Spotted 15 | . . . . . . . . . 15 Lose Combat Pursuer 120 | . . . 45 . . 15 15 45 . Influence Decreases 2688 | . 140 315 794 383 73 154 182 220 427 Entered New Map 1055 | . . 155 94 263 73 . 23 40 407 Time Decay 1153 | . 80 110 520 120 . 154 149 . 20 Lost Part 270 | . 60 50 30 . . . 10 120 . Lost Ally 60 | . . . . . . . . 60 . Purge Threat 150 | . . . 150 . . . . . . Squads Dispatched 9 | . 1 . 5 . . . 2 . 1 Investigation 2 | . . . 2 . . . . . . Extermination . | . . . . . . . . . . Reinforcement 5 | . 1 . 2 . . . 1 . 1 Assault 1 | . . . 1 . . . . . . Garrison 1 | . . . . . . . 1 . . Intercept . | . . . . . . . . . . Searches Triggered . | . . . . . . . . . . Construction Impeded . | . . . . . . . . . . Haulers Reinforced . | . . . . . . . . . . Active Scanning Responses . | . . . . . . . . . . Cargo Convoy Interrupts . | . . . . . . . . . . Stealth | -11 -10 -10 -9 -9 -9 -8 -8 -8 -8 --------- Run | Yrd Mat Min Mat Min Exi Min Mat Gar Mat Distress Signals 3 | . . . 1 . . . 2 . . Communications Jammed . | . . . . . . . . . . Distress Signals . | . . . . . . . . . . Times Spotted 113 | . 10 5 43 . . 8 19 27 1 Peak Tracking Total 6 | . 5 4 5 . . 4 6 6 2 Tactical Retreats 6 | . . . 2 . . 1 1 2 . Traps | -11 -10 -10 -9 -9 -9 -8 -8 -8 -8 ------- Run | Yrd Mat Min Mat Min Exi Min Mat Gar Mat Traps Triggered 4 | . . . 2 . . . . 2 . Indirectly . | . . . . . . . . . . Trap Hack Attempts . | . . . . . . . . . . Triggered . | . . . . . . . . . . Disarmed . | . . . . . . . . . . Reprogrammed . | . . . . . . . . . . Reused . | . . . . . . . . . . Traps Extracted . | . . . . . . . . . . Installed . | . . . . . . . . . . Triggered . | . . . . . . . . . . Machines | -11 -10 -10 -9 -9 -9 -8 -8 -8 -8 ---------- Run | Yrd Mat Min Mat Min Exi Min Mat Gar Mat Machines Disabled 9 | . 5 . 2 . . 1 . 1 . Max in Single Turn 2 | . 2 . 1 . . 1 . 1 . Garrison Relay 1 | . . . . . . . . 1 . Machines Repaired . | . . . . . . . . . . Machines Dismantled . | . . . . . . . . . . Machines Sabotaged . | . . . . . . . . . . Overloaded Fab Kills . | . . . . . . . . . . Hacking | -11 -10 -10 -9 -9 -9 -8 -8 -8 -8 --------- Run | Yrd Mat Min Mat Min Exi Min Mat Gar Mat Machines Accessed 20 | . 1 . 12 . 1 1 3 2 . Terminals 15 | . . . 10 . . 1 2 2 . Fabricators . | . . . . . . . . . . Repair Stations . | . . . . . . . . . . Recycling Units 2 | . 1 . 1 . . . . . . Scanalyzers 1 | . . . 1 . . . . . . Garrison Access 1 | . . . . . . . 1 . . Total Hacks 66 | . 2 . 43 . 1 2 12 6 . Successful 37 | . 2 . 24 . 1 . 8 2 . Failed 29 | . . . 19 . . 2 4 4 . Catastrophic . | . . . . . . . . . . Database Lockouts . | . . . . . . . . . . Manual 33 | . . . 24 . 1 . 8 . . Terminals 57 | . . . 38 . . 2 11 6 . Fabricators . | . . . . . . . . . . Repair Stations . | . . . . . . . . . . Recycling Units 3 | . 2 . 1 . . . . . . Scanalyzers 4 | . . . 4 . . . . . . Garrison Access 1 | . . . . . . . 1 . . Terminal Hacks 18 | . . . 11 . 1 . 4 2 . Prototype ID Bank 6 | . . . 6 . . . . . . Open Door 1 | . . . . . . . . 1 . Branch Access Points 1 | . . . 1 . . . . . . Emergency Access Points 1 | . . . . . . . . 1 . Unreport Threat 1 | . . . 1 . . . . . . Locate Traps 2 | . . . 1 . . . 1 . . Recall Reinforcements 1 | . . . . . . . 1 . . Hauler Manifests 1 | . . . 1 . . . . . . Zone Layout 3 | . . . 1 . . . 2 . . Proto ID Catalog 1 | . . . . . 1 . . . . Fabricator Hacks . | . . . . . . . . . . Repair Station Hacks . | . . . . . . . . . . Recycling Unit Hacks 3 | . 2 . 1 . . . . . . Retrieve Components 3 | . 2 . 1 . . . . . . Scanalyzer 4 | . . . 4 . . . . . . Insert Component 3 | . . . 3 . . . . . . Analyze 1 | . . . 1 . . . . . . Garrison Access Hacks 1 | . . . . . . . 1 . . Unlock Access 1 | . . . . . . . 1 . . Unauthorized Hacks 11 | . . . 8 . . . 3 . . Terminals 11 | . . . 8 . . . 3 . . Botnet 4 | . . . 3 . . . 1 . . Skim 7 | . . . 5 . . . 2 . . Fabricators . | . . . . . . . . . . Repair Stations . | . . . . . . . . . . Recycling Units . | . . . . . . . . . . Scanalyzers . | . . . . . . . . . . Garrison Access . | . . . . . . . . . . Data Cores Recovered . | . . . . . . . . . . Used . | . . . . . . . . . . Hacking Detections 16 | . 1 . 10 . . 1 2 2 . Full Trace Events . | . . . . . . . . . . Feedback Events . | . . . . . . . . . . Feedback Blocked . | . . . . . . . . . . Robot Schematics Acquired . | . . . . . . . . . . Robots Built . | . . . . . . . . . . Authchips . | . . . . . . . . . . Time . | . . . . . . . . . . Total Robot Build Rating . | . . . . . . . . . . Part Schematics Acquired 1 | . . . 1 . . . . . . Parts Built . | . . . . . . . . . . Authchips . | . . . . . . . . . . Time . | . . . . . . . . . . Total Part Build Rating . | . . . . . . . . . . Parts Repaired . | . . . . . . . . . . Time . | . . . . . . . . . . Parts Recycled . | . . . . . . . . . . Recycled Matter . | . . . . . . . . . . Retrieved Matter . | . . . . . . . . . . Retrieved Components 5 | . 3 . 2 . . . . . . Parts Scanalyzed 1 | . . . 1 . . . . . . Part Schematics Acquired 1 | . . . 1 . . . . . . Parts Damaged . | . . . . . . . . . . Bothacking | -11 -10 -10 -9 -9 -9 -8 -8 -8 -8 ------------ Run | Yrd Mat Min Mat Min Exi Min Mat Gar Mat Used RIF Installer 1 | . . . . . . . . 1 . Robots Hacked . | . . . . . . . . . . Non-combat . | . . . . . . . . . . Combat . | . . . . . . . . . . Robot Hacks Applied . | . . . . . . . . . . Relay Couplers Released 5 | . . . . . . . . 5 . Machine Destruction 5 | . . . . . . . . 5 . Fabnet Peak Effective % . | . . . . . . . . . . Robots Rewired 3 | . . . . . . . . 3 . Allies Hacked . | . . . . . . . . . . Hacks Repelled . | . . . . . . . . . . Allies | -11 -10 -10 -9 -9 -9 -8 -8 -8 -8 -------- Run | Yrd Mat Min Mat Min Exi Min Mat Gar Mat Total Allies 3 | . . . . . . . . 3 . Largest Group 3 | . . . . . . . . 3 . Highest-Rated Group 87 | . . . . . . . . 87 . Highest-Rated Ally 31 | . . . . . . . . 31 . Total Orders . | . . . . . . . . . . Ally Attacks 39 | . . . . . . . . 39 . Total Damage 517 | . . . . . . . . 517 . Kills 4 | . . . . . . . . 4 . Allies Corrupted . | . . . . . . . . . . Allies Melted . | . . . . . . . . . . Intel | -11 -10 -10 -9 -9 -9 -8 -8 -8 -8 ------- Run | Yrd Mat Min Mat Min Exi Min Mat Gar Mat Active Infowar (turns) 3623 | . 165 . 961 245 333 659 626 581 53 Sensors 719 | . . . 719 . . . . . . Seismic 2018 | . 165 . 242 245 333 659 374 . . Machine Analysis 886 | . . . . . . . 252 581 53 Robot Analysis Total . | . . . . . . . . . . Derelict Logs Recovered 1 | . . . . 1 . . . . . Drone Launches . | . . . . . . . . . . Drone Recoveries . | . . . . . . . . . . Exploration | -11 -10 -10 -9 -9 -9 -8 -8 -8 -8 ------------- Run | Yrd Mat Min Mat Min Exi Min Mat Gar Mat Turns Passed 5264 | 64 219 231 1609 245 333 659 634 1217 53 Spaces Moved 2557 | 36 96 138 766 144 208 349 300 498 22 Core 24 | 1 3 16 . . . . . 4 . Treads 2310 | 35 93 . 665 144 208 349 300 494 22 Legs . | . . . . . . . . . . Wheels 143 | . . 42 101 . . . . . . Hover . | . . . . . . . . . . Flight 80 | . . 80 . . . . . . . Fastest Speed 50 | 50 150 100 100 160 160 160 160 160 235 Average Speed 164 | 156 159 119 153 160 160 160 160 202 236 Slowest Speed 1000 | 160 160 200 160 160 160 160 160 1000 240 Overloaded Moves . | . . . . . . . . . . Propulsion Burnouts . | . . . . . . . . . . Robots Hopped . | . . . . . . . . . . Potential Cave-ins . | . . . . . . . . . . Cave-ins Triggered 1 | . . 1 . . . . . . . Exploration Rate (%) 40 | 3 28 31 79 34 41 77 40 64 4 Regions Visited 9 Branch Regions 4 Pre-discovered Areas 3 | . . . 3 . . . . . . Known Exits Taken 3 | . . . 1 . . 1 1 . . Unknown Exits Taken 5 | 1 1 1 . 1 1 . . . . Scrap Searched 2 | . . . . 1 . 1 . . . Spaces Dug . | . . . . . . . . . . Terrain Destroyed 182 | . 125 19 38 . . . . . . Melee . | . . . . . . . . . . Projectile . | . . . . . . . . . . AOE 182 | . 125 19 38 . . . . . . Terrain Rammed . | . . . . . . . . . . Walls Destroyed . | . . . . . . . . . . Machines Disabled . | . . . . . . . . . . Actions | -11 -10 -10 -9 -9 -9 -8 -8 -8 -8 --------- Run | Yrd Mat Min Mat Min Exi Min Mat Gar Mat Total 3199 | 41 130 183 1027 149 208 422 389 626 24 Wait 202 | . . 14 87 . . 57 34 9 1 Move 2549 | 35 95 137 765 143 207 348 300 497 22 Hop . | . . . . . . . . . . Pick Up 45 | 1 3 1 26 1 1 2 5 5 . Fast Attach 25 | 5 2 6 5 . . . 1 5 1 Attach 28 | . 2 4 6 . . . 4 12 . Detach 5 | . 1 1 . . . . 1 2 . Swap 23 | . 4 2 12 . . . 4 1 . Drop 37 | . . . 24 . . . 6 7 . Fire 236 | . 20 14 102 5 . 15 34 46 . Melee . | . . . . . . . . . . Ram 4 | . . 4 . . . . . . . Kick . | . . . . . . . . . . Crush 3 | . 3 . . . . . . . . Escape Stasis 2 | . . . . . . . . 2 . Rewire 40 | . . . . . . . . 40 . Trap . | . . . . . . . . . . Miscellaneous . | . . . . . . . . . . Route ------- -11/Scrapyard -10/Materials -10/Mines -9/Materials (discovered 4 exits: *Mat x3 / *Min) -9/Mines (discovered 2 exits: *Mat / *Exi) -9/Exiles -8/Mines -8/Materials -8/Garrison (discovered 3 exits: [*Mat x3]) -8/Materials History --------- Turn | Location | Event 14 | -11/Scrapyard | Discovered new exit (range 16) 65 | -11/Scrapyard | Entered Materials 166 | -10/Materials | Lost 3 parts (1p1n1w) 261 | -10/Materials | Discovered new exit (range 9) 284 | -10/Materials | Entered Mines 310 | -10/Mines | Lost 3 parts (1n1u1w) 329 | -10/Mines | Build established: Mutant 329 | -10/Mines | A weapon hastily lodged in a ceiling crevice suddenly fell to the ground 402 | -10/Mines | Core integrity fell below 50% 411 | -10/Mines | Crushed by falling debris 431 | -10/Mines | Core integrity fell below 20% 463 | -10/Mines | Lost 5 parts (1p1n3w) 493 | -10/Mines | Discovered new exit (range 11) 515 | -10/Mines | Entered Materials 515 | -9/Materials | Evolved 2 slots: Propulsion x1, Weapon x1 805 | -9/Materials | Discovered new exit (range 13) 882 | -9/Materials | Build established: Scavenger-Skirmisher 978 | -9/Materials | Discovered new exit (range 8) 995 | -9/Materials | Identified exit to Mines 1190 | -9/Materials | Discovered new exit (range 15) 1261 | -9/Materials | Learned location of Zion (-6) 1376 | -9/Materials | Loaded intel: 12 terminal locations 1401 | -9/Materials | Learned location of 1 exit from Recycling 1420 | -9/Materials | Learned Storage emergency access door positions 1449 | -9/Materials | Identified exit to Materials 1466 | -9/Materials | Destroyed 8 combat bots 1606 | -9/Materials | Build established: Scavenger-Tank 2115 | -9/Materials | First assault squad dispatched 2124 | -9/Materials | Entered Mines 2131 | -9/Mines | Discovered exit to Materials (range 12) 2137 | -9/Mines | Learned Materials emergency access door positions 2162 | -9/Mines | Build established: Gunner 2312 | -9/Mines | Deemed a non-threat by the Exiles lab entrance 2312 | -9/Mines | Discovered new exit (range 5) 2369 | -9/Mines | Entered Exiles 2408 | -9/Exiles | Met 8R-AWN 2435 | -9/Exiles | Met EX-HEX 2481 | -9/Exiles | Met EX-BIN 2499 | -9/Exiles | Aligned with FarCom system 2501 | -9/Exiles | Given EX-Vault access code 2537 | -9/Exiles | Opened EX-Vault 2549 | -9/Exiles | Found Firepult 2583 | -9/Exiles | Warned to stay clear of 0b10 Research branches 2684 | -9/Exiles | Discovered new exit (range 14) 2702 | -9/Exiles | Left Exiles lab with Firepult 2702 | -9/Exiles | Entered Mines 2998 | -8/Mines | Build established: Skirmisher 3149 | -8/Mines | Discovered exit to Materials (range 8) 3361 | -8/Mines | Entered Materials 3361 | -8/Materials | Evolved 2 slots: Utility x2 3917 | -8/Materials | Garrison activated, responded to threat 3995 | -8/Materials | Identified exit to Garrison 3995 | -8/Materials | Entered Garrison 4029 | -8/Garrison | Triggered checkpoint 4111 | -8/Garrison | Garrison Relay disabled 4271 | -8/Garrison | Triggered checkpoint 4289 | -8/Garrison | Triggered checkpoint 4452 | -8/Garrison | Discovered new exit (range 13) 4470 | -8/Garrison | Build established: Scavenger-Skirmisher 4550 | -8/Garrison | Discovered new exit (range 6) 4561 | -8/Garrison | Triggered checkpoint 4575 | -8/Garrison | Core integrity fell below 50% 4588 | -8/Garrison | Core integrity fell below 20% 4613 | -8/Garrison | Lost 8 parts (3n2u3w) 4839 | -8/Garrison | Triggered checkpoint 4882 | -8/Garrison | Triggered checkpoint 4958 | -8/Garrison | Discovered new exit (range 9) 5037 | -8/Garrison | Triggered checkpoint 5097 | -8/Garrison | Installed Relay Interface Framework 5212 | -8/Garrison | Entered Materials 5265 | -8/Materials | Destroyed by Y-45 Defender with Beam Rifle Last Messages --------------- 05097_ Relay Interface Framework installed. 05195_ ALERT: Garrison interior compromised. 05212_ Attempting to access garrison exit controls... RIF authorized. LOCATION=UNKNOWN GOAL=ESCAPE 05212_ Receiving FarCom transmissions... 05215_ >> Machine Analyzer network decryption results: 05215_ Recycling Unit x1 05215_ Scanalyzer x1 05217_ >> Machine Analyzer network decryption results: 05217_ Terminal x1 05224_ Acquired Adv. Treads. 05231_ O-16 Technician: "IFF HANDSHAKE FAILED. SECURING TERMINAL." 05234_ ALERT: Hostiles spotted, dispatching reinforcements to Terminal M006. Map ----- +----------------------------------------------------+ | ?????????????????????????????????????????????????? | | ?????????????????????????????????????????????????? | | ?????????????????????????????????????????????????? | | ?????????????????????????????????????????????????? | | ?????????????????????????????????????????????????? | | ???????????????????????????????""????????????????? | | ??????????????????????????????""S????????????????? | | ??????????????????????????????""?????????????????? | | ?????????????????????????????????????????????????? | | ????????????????????????????????"""??????????????? | | ??????????????????????? Y ??????"""??????????????? | | ???????????????o?????? ??????"""??????????????? | | ?????????????????????? !???????????????????????? | | ??????????????????????# ???????????????????????? | | ??????????????????????# ???????????????????????? | | ??????????????????????# ???????????????????????? | | ??????????????????????# ???????????????????????? | | ??????????????????????# #??????????????????????? | | ??????????????????????# #??????????????????????? | | ??????????????????????# #???????########???????? | | ??????????????????????# #???????# """ #???????? | | ??????????????????????# #???????# "Y" #???????? | | ??????????????????????# #???????# #???????? | | ??????????????????????# #???????# ! #???????? | | ?????????????????Y????# #???????# #???????? | | ??????????????????????# @###?????# #???????? | | ????????????????"""?"?# ##########+####??????? | | ????????????????"""?T?#u / #??????? | | ????????????????"""?"?# " #??????? | | ??????????????????????# #??????? | | ????????????????"""???# ###+######+####??????? | | ????????????????"""???## ##???????? ?????????? | | ????????????????"""????# #?????????"" ?????????? | | ???????????????????????# #?????????"T ?????????? | | ???????????????????????# #?????????"" ?????????? | | ??????????????????????? u #????????? ?????????? | | ?????????????????????? #??????????? ?????????? | | ?????????????????????g #???????????#?????????? | | ????????????????????g### ???"""????????????????? | | ???????????????????????# ???"""????????????????? | | ???????????????????????# ???"""????????????????? | | ???????????????????????# ??????????????????????? | | ????????????????????????? ???????????????????????? | | ?????????????????????????????????????????????????? | | ?????????????????????????????????????????????????? | | ?????????????????????????????????????????????????? | | ?????????????????????????????????????????????????? | | ?????????????????????????????????????????????????? | | ?????????????????????????????????????????????????? | | ?????????????????????????????????????????????????? | +----------------------------------------------------+ Best States ------------- Heat Dissipation 59 Energy Generation 16 Energy Capacity 290 Matter Stores 300 Matter Capacity 300 Sight Range 16 Robot Scan Range 14 Terrain Scan Density 85 Evasion (%) 40 Targeting Accuracy 8 Core Analysis 6 Recoil Reduction 3 Item Schematics ----------------- Imp. Assault Rifle | -9/Materials | Scanalyzed Robot Schematics ------------------ None Fabricated ------------ Nothing Repaired ---------- Nothing Alien Tech Used ----------------- None Achievements -------------- None Challenges ------------ None Game ------ Seed DefenseXenonCutter Manual? 0 Play Time 00:33:59 Cumulative 190.0 hours Start 2025.08.16 @ 20:25:21 End 2025.08.16 @ 20:59:51 Sessions 1 Manual Loads 0 Difficulty Rogue Special Mode None Game No. 159 Rogue 159 Adventurer 0 Explorer 0 Win Type - Total 5 Types 3/0/1/1/0/0/0/0/0/0 Lore% 79 Gallery% 71 Achievement% 66 Wizard Run 0 Options --------- Layout 1 ASCII 0 Keyboard 0 Movement Mouse Keybinds 0 Fullscreen 1 Font 24/Smallcaps Map View 50x35 Zoom Use 0% Tactical HUD 1 Map Filters NONE Filters NONE Steam 1 RUN: 4719b5e5-91d4-45bf-96ae-728d7f9f83db